fUSD/lending_fUSD_20260601
["ID","MTS","AMOUNT","RATE_DAILY","PERIOD"]
[423635705,1780267845000,-1146.7427275,0.00032683,2]
[423635711,1780267845000,-157.0,0.00032707,30]
[423635713,1780267845000,-158.0,0.00032707,30]
[423635709,1780267845000,-691.0,0.00032707,30]
[423635716,1780267845000,-1054.0,0.00032707,30]
[423635726,1780267845000,-387.0,0.00032712,30]
[423635707,1780267845000,-1097.0,0.00032707,30]
[423635718,1780267845000,-288.0,0.00032707,30]
[423635722,1780267845000,-995.0,0.00032707,30]
[423635720,1780267845000,-186.0,0.00032707,30]
[423635728,1780267845000,-507.0,0.00032712,30]
[423635724,1780267845000,-268.0,0.00032712,30]
[423635676,1780267845000,-997.91037959,0.00032672,2]
[423635698,1780267845000,-971.42233207,0.00032683,2]
[423635674,1780267845000,-150.0,0.00032651,7]
[423635610,1780267845000,-831.44493742,0.00031796,2]
[423635670,1780267845000,-150.0,0.00032593,7]
[423635730,1780267845000,-265.0,0.00032712,30]
[423635621,1780267845000,-150.0,0.00031982,7]
[423635612,1780267845000,-955.61893959,0.00031796,2]
[423635614,1780267845000,-150.0,0.0003186,7]
[423635623,1780267845000,-151.0,0.00031999,4]
[423635619,1780267845000,-608.0,0.00031943,7]
[423635617,1780267845000,-150.0,0.00031896,7]
[423635627,1780267845000,-200.0,0.00032055,2]
[423635629,1780267845000,-150.0,0.00032078,7]
[423635625,1780267845000,-700.0,0.00032,2]
[423635635,1780267845000,-275.32,0.000322,12]
[423635640,1780267845000,-469.6,0.0003221,5]
[423635633,1780267845000,-150.0,0.00032186,7]
[423635642,1780267845000,-150.0,0.00032261,7]
[423635631,1780267845000,-150.0,0.00032157,7]
[423635644,1780267845000,-701.23,0.000323,7]
[423635637,1780267845000,-731.19,0.000322,7]
[423635648,1780267845000,-150.0,0.00032321,7]
[423635646,1780267845000,-313.6,0.000323,7]
[423635650,1780267845000,-150.0,0.00032321,7]
[423635654,1780267845000,-150.0,0.00032443,7]
[423635656,1780267845000,-608.0,0.00032477,7]
[423635652,1780267845000,-150.0,0.00032389,7]
[423635658,1780267845000,-1000.0,0.000325,2]
[423635660,1780267845000,-1000.0,0.000325,7]
[423635662,1780267845000,-1000.65067019,0.000325,14]
[423635664,1780267845000,-500.0,0.00032505,24]
[423635666,1780267845000,-150.0,0.00032552,7]
[423635668,1780267845000,-150.0,0.00032562,2]
[423635672,1780267845000,-150.0,0.00032625,7]
[423635736,1780267845000,-2209.16,0.000328,14]
[423635749,1780267845000,-500.0,0.00032877,2]
[423635734,1780267845000,-150.0,0.00032797,7]
[423635812,1780267845000,-200.0,0.00033283,2]
[423635814,1780267845000,-200.0,0.00033283,2]
[423635810,1780267845000,-200.0,0.00033283,2]
[423635816,1780267845000,-200.0,0.00033283,2]
[423635817,1780267845000,-200.0,0.00033283,2]
[423635824,1780267845000,-200.0,0.00033283,2]
[423635828,1780267845000,-200.0,0.00033283,2]
[423635822,1780267845000,-200.0,0.00033283,2]
[423635832,1780267845000,-200.0,0.00033283,2]
[423635826,1780267845000,-200.0,0.00033283,2]
[423635830,1780267845000,-200.0,0.00033283,2]
[423635820,1780267845000,-200.0,0.00033283,2]
[423635834,1780267845000,-200.0,0.00033283,2]
[423635808,1780267845000,-200.0,0.00033283,2]
[423635847,1780267845000,-200.0,0.00033283,2]
[423635836,1780267845000,-200.0,0.00033283,2]
[423635854,1780267845000,-200.0,0.00033283,2]
[423635838,1780267845000,-166.0,0.00033283,2]
[423635852,1780267845000,-200.0,0.00033283,2]
[423635842,1780267845000,-200.0,0.00033283,2]
[423635737,1780267845000,-41194.13762555,0.000328,30]
[423635845,1780267845000,-200.0,0.00033283,2]
[423635841,1780267845000,-200.0,0.00033283,2]
[423635859,1780267845000,-200.0,0.00033283,2]
[423635861,1780267845000,-200.0,0.00033283,2]
[423635862,1780267845000,-200.0,0.00033283,2]
[423635865,1780267845000,-200.0,0.00033283,2]
[423635870,1780267845000,-200.0,0.00033283,2]
[423635848,1780267845000,-200.0,0.00033283,2]
[423635803,1780267845000,-200.0,0.00033283,2]
[423635857,1780267845000,-200.0,0.00033283,2]
[423635790,1780267845000,-150.0,0.00033,7]
[423635805,1780267845000,-200.0,0.00033283,2]
[423635744,1780267845000,-231.54,0.00032877,2]
[423635746,1780267845000,-500.0,0.00032877,2]
[423635742,1780267845000,-545.38168036,0.00032877,2]
[423635755,1780267845000,-500.0,0.00032877,2]
[423635753,1780267845000,-500.0,0.00032877,2]
[423635751,1780267845000,-500.0,0.00032877,2]
[423635757,1780267845000,-500.0,0.00032877,2]
[423635759,1780267845000,-423.13003328,0.00032877,2]
[423635762,1780267845000,-264.48,0.000329,120]
[423635764,1780267845000,-370.27,0.000329,120]
[423635761,1780267845000,-407.06207949,0.00032877,30]
[423635766,1780267845000,-400.0,0.00032955,2]
[423635769,1780267845000,-400.0,0.00032955,2]
[423635739,1780267845000,-150.0,0.00032807,7]
[423635777,1780267845000,-407.0,0.00032955,2]
[423635801,1780267845000,-150.0,0.00033245,7]
[423635773,1780267845000,-403.93373113,0.00032955,2]
[423635791,1780267845000,-608.0,0.00033011,8]
[423635784,1780267845000,-150.0,0.0003299,7]
[423635799,1780267845000,-150.0,0.00033204,7]
[423635785,1780267845000,-212.02958337,0.00032999,4]
[423635788,1780267845000,-220.14,0.00033,14]
[423635795,1780267845000,-150.0,0.00033146,7]
[423635794,1780267845000,-350.0,0.00033014,5]
[423635771,1780267845000,-400.0,0.00032955,2]
[423635782,1780267845000,-246.09559064,0.00032955,2]
[423635780,1780267845000,-419.05891266,0.00032955,2]
[423635798,1780267845000,-150.0,0.00033172,7]
[423635775,1780267845000,-407.0,0.00032955,2]
[423635952,1780267846000,-1092.86260771,0.00033337,20]
[423635950,1780267846000,-313.6,0.000333,30]
[423635935,1780267846000,-500.0,0.00033283,2]
[423635931,1780267846000,-154.0,0.00033283,2]
[423635940,1780267846000,-500.0,0.00033283,2]
[423635933,1780267846000,-500.0,0.00033283,2]
[423635964,1780267846000,-1025.23116743,0.00033337,20]
[423635947,1780267846000,-530.0,0.00033283,2]
[423635938,1780267846000,-500.0,0.00033283,2]
[423635961,1780267846000,-1103.63993374,0.00033337,20]
[423635968,1780267846000,-1024.9711999,0.00033337,20]
[423635970,1780267846000,-150.0,0.00033354,7]
[423635957,1780267846000,-1056.3050254,0.00033337,20]
[423635959,1780267846000,-1001.63400873,0.00033337,20]
[423635966,1780267846000,-1137.49233493,0.00033337,20]
[423635972,1780267846000,-1500.0,0.000334,7]
[423635981,1780267846000,-459.45332818,0.0003348,26]
[423635979,1780267846000,-150.0,0.00033476,7]
[423635989,1780267846000,-150.0,0.00033537,7]
[423635942,1780267846000,-500.0,0.00033283,2]
[423635955,1780267846000,-1047.92858805,0.00033337,20]
[423635928,1780267846000,-200.0,0.00033283,2]
[423635893,1780267846000,-200.0,0.00033283,2]
[423635918,1780267846000,-200.0,0.00033283,2]
[423635984,1780267846000,-201.65895795,0.00033499,30]
[423635878,1780267846000,-200.0,0.00033283,2]
[423635875,1780267846000,-200.0,0.00033283,2]
[423635881,1780267846000,-200.0,0.00033283,2]
[423635873,1780267846000,-200.0,0.00033283,2]
[423635874,1780267846000,-200.0,0.00033283,2]
[423635883,1780267846000,-200.0,0.00033283,2]
[423635891,1780267846000,-200.0,0.00033283,2]
[423635899,1780267846000,-200.0,0.00033283,2]
[423635896,1780267846000,-200.0,0.00033283,2]
[423635886,1780267846000,-200.0,0.00033283,2]
[423635902,1780267846000,-200.0,0.00033283,2]
[423635889,1780267846000,-200.0,0.00033283,2]
[423635906,1780267846000,-200.0,0.00033283,2]
[423635914,1780267846000,-200.0,0.00033283,2]
[423635909,1780267846000,-200.0,0.00033283,2]
[423635916,1780267846000,-200.0,0.00033283,2]
[423635921,1780267846000,-200.0,0.00033283,2]
[423635911,1780267846000,-200.0,0.00033283,2]
[423635904,1780267846000,-200.0,0.00033283,2]
[423635923,1780267846000,-200.0,0.00033283,2]
[423635926,1780267846000,-200.0,0.00033283,2]
[423635995,1780267846000,-150.0,0.00033612,7]
[423635945,1780267846000,-500.0,0.00033283,2]
[423635976,1780267846000,-150.0,0.00033476,7]
[423636043,1780267846000,-200.0,0.00033954,10]
[423636045,1780267846000,-402.21,0.00033973,5]
[423636048,1780267846000,-750.0,0.00034,2]
[423636062,1780267846000,-1182.66850352,0.00034013,2]
[423636055,1780267846000,-1164.22877619,0.00034002,2]
[423636060,1780267846000,-1143.3834906,0.00034013,2]
[423636058,1780267846000,-1284.6541526,0.00034013,2]
[423636053,1780267846000,-1175.2488183,0.00034002,2]
[423636050,1780267846000,-731.19,0.00034,7]
[423636066,1780267846000,-1582.6758921,0.00034013,2]
[423636069,1780267846000,-1643.32979869,0.00034013,2]
[423636071,1780267846000,-1250.12443683,0.00034013,2]
[423636074,1780267846000,-1130.47595034,0.00034013,2]
[423636085,1780267846000,-150.0,0.00034019,7]
[423636081,1780267846000,-1298.03247628,0.00034013,2]
[423636076,1780267846000,-1097.904522,0.00034013,2]
[423636079,1780267846000,-1133.32605408,0.00034013,2]
[423636083,1780267846000,-1164.02291238,0.00034013,2]
[423636090,1780267846000,-608.0,0.00034079,9]
[423636088,1780267846000,-2000.0,0.00034078,9]
[423635993,1780267846000,-2000.0,0.00033573,36]
[423636041,1780267846000,-150.0,0.00033938,7]
[423636029,1780267846000,-150.0,0.00033719,7]
[423636064,1780267846000,-1710.04651474,0.00034013,2]
[423636027,1780267846000,-265.0,0.00033712,30]
[423636031,1780267846000,-150.0,0.00033815,7]
[423635974,1780267846000,-150.0,0.00033408,7]
[423635991,1780267846000,-608.0,0.00033545,9]
[423636000,1780267846000,-2000.0,0.000337,7]
[423636002,1780267846000,-1097.0,0.00033707,30]
[423636011,1780267846000,-1054.0,0.00033707,30]
[423636005,1780267846000,-691.0,0.00033707,30]
[423636009,1780267846000,-158.0,0.00033707,30]
[423635998,1780267846000,-150.0,0.00033641,7]
[423636007,1780267846000,-157.0,0.00033707,30]
[423636016,1780267846000,-186.0,0.00033707,30]
[423635986,1780267846000,-1000.92020843,0.0003351,2]
[423636014,1780267846000,-288.0,0.00033707,30]
[423636020,1780267846000,-268.0,0.00033712,30]
[423636022,1780267846000,-387.0,0.00033712,30]
[423636033,1780267846000,-5371.3,0.000339,2]
[423636025,1780267846000,-507.0,0.00033712,30]
[423636092,1780267846000,-150.0,0.00034083,7]
[423636035,1780267846000,-701.23,0.000339,30]
[423636037,1780267846000,-2685.65,0.000339,2]
[423636040,1780267846000,-150.0,0.00033901,7]
[423636018,1780267846000,-995.0,0.00033707,30]
[423636134,1780267847000,-407.0,0.00034453,2]
[423636157,1780267847000,-150.94651201,0.0003463,7]
[423636152,1780267847000,-150.0,0.0003463,7]
[423636155,1780267847000,-150.0,0.0003463,7]
[423636135,1780267847000,-407.0,0.00034453,2]
[423636136,1780267847000,-407.0,0.00034453,2]
[423636139,1780267847000,-150.0,0.00034453,2]
[423636141,1780267847000,-150.0,0.00034453,2]
[423636164,1780267847000,-150.29016843,0.0003463,7]
[423636137,1780267847000,-150.0,0.00034453,2]
[423636162,1780267847000,-150.60855758,0.0003463,7]
[423636174,1780267847000,-150.0,0.0003463,7]
[423636167,1780267847000,-221.00621176,0.0003463,7]
[423636172,1780267847000,-183.95998079,0.0003463,7]
[423636169,1780267847000,-150.0,0.0003463,7]
[423636177,1780267847000,-186759.491033,0.00034636,2]
[423636180,1780267847000,-433.20822678,0.00034657,2]
[423636188,1780267847000,-691.0,0.00034707,30]
[423636185,1780267847000,-1097.0,0.00034707,30]
[423636206,1780267847000,-186.0,0.00034707,30]
[423636197,1780267847000,-157.0,0.00034707,30]
[423636160,1780267847000,-150.0,0.0003463,7]
[423636150,1780267847000,-500.0,0.0003463,2]
[423636102,1780267847000,-150.0,0.00034223,7]
[423636146,1780267847000,-608.0,0.00034613,10]
[423636210,1780267847000,-268.0,0.00034712,30]
[423636103,1780267847000,-2000.0,0.00034247,30]
[423636105,1780267847000,-928.0,0.00034268,2]
[423636106,1780267847000,-3550.0,0.00034268,2]
[423636101,1780267847000,-150.0,0.0003419,2]
[423636104,1780267847000,-150.0,0.00034266,7]
[423636095,1780267847000,-313.6,0.000341,30]
[423636107,1780267847000,-1356.0,0.00034268,2]
[423636097,1780267847000,-150.0,0.00034135,7]
[423636099,1780267847000,-469.6,0.00034182,7]
[423636148,1780267847000,-1520.24509226,0.00034615,7]
[423636108,1780267847000,-525.0,0.00034268,2]
[423636111,1780267847000,-1273.0,0.00034268,2]
[423636113,1780267847000,-150.0,0.00034268,2]
[423636115,1780267847000,-150.0,0.00034268,2]
[423636117,1780267847000,-932.0,0.00034268,2]
[423636127,1780267847000,-400.0,0.00034453,2]
[423636122,1780267847000,-150.0,0.00034426,7]
[423636124,1780267847000,-150.0,0.00034448,7]
[423636129,1780267847000,-400.0,0.00034453,2]
[423636131,1780267847000,-400.0,0.00034453,2]
[423636144,1780267847000,-26897.0,0.0003448,2]
[423636120,1780267847000,-3639.0,0.00034268,2]
[423636208,1780267847000,-995.0,0.00034707,30]
[423636182,1780267847000,-2209.16,0.000347,14]
[423636202,1780267847000,-1054.0,0.00034707,30]
[423636266,1780267847000,-300.0,0.00035471,2]
[423636269,1780267847000,-300.0,0.00035471,2]
[423636270,1780267847000,-300.0,0.00035471,2]
[423636275,1780267847000,-300.0,0.00035471,2]
[423636273,1780267847000,-1097.16968584,0.00035471,2]
[423636277,1780267847000,-300.0,0.00035471,2]
[423636285,1780267847000,-300.0,0.00035471,2]
[423636280,1780267847000,-300.0,0.00035471,2]
[423636281,1780267847000,-300.0,0.00035471,2]
[423636284,1780267847000,-300.0,0.00035471,2]
[423636258,1780267847000,-300.0,0.00035471,2]
[423636288,1780267847000,-300.0,0.00035471,2]
[423636305,1780267847000,-300.0,0.00035471,2]
[423636298,1780267847000,-493.71853303,0.00035471,2]
[423636303,1780267847000,-300.0,0.00035471,2]
[423636301,1780267847000,-300.0,0.00035471,2]
[423636296,1780267847000,-300.0,0.00035471,2]
[423636292,1780267847000,-300.0,0.00035471,2]
[423636294,1780267847000,-300.0,0.00035471,2]
[423636290,1780267847000,-300.0,0.00035471,2]
[423636310,1780267847000,-605.70713704,0.00035471,2]
[423636212,1780267847000,-387.0,0.00034712,30]
[423636308,1780267847000,-300.0,0.00035471,2]
[423636260,1780267847000,-300.0,0.00035471,2]
[423636287,1780267847000,-300.0,0.00035471,2]
[423636254,1780267847000,-485.1231417,0.00035471,2]
[423636213,1780267847000,-507.0,0.00034712,30]
[423636256,1780267847000,-310.50110747,0.00035471,2]
[423636200,1780267847000,-158.0,0.00034707,30]
[423636204,1780267847000,-288.0,0.00034707,30]
[423636215,1780267847000,-265.0,0.00034712,30]
[423636230,1780267847000,-2119.728,0.00035,40]
[423636217,1780267847000,-1500.0,0.00034795,2]
[423636232,1780267847000,-2266.0,0.00035,7]
[423636221,1780267847000,-413.61503396,0.00034881,5]
[423636234,1780267847000,-315.84,0.0003513,30]
[423636220,1780267847000,-1001.0,0.00034849,120]
[423636228,1780267847000,-600.60202907,0.00035,7]
[423636226,1780267847000,-4917.82941975,0.00034881,5]
[423636224,1780267847000,-10259.85300746,0.00034881,5]
[423636237,1780267847000,-608.0,0.00035147,10]
[423636239,1780267847000,-313.6,0.000352,30]
[423636244,1780267847000,-300.0,0.00035471,2]
[423636242,1780267847000,-1000.0,0.000354,120]
[423636246,1780267847000,-300.0,0.00035471,2]
[423636249,1780267847000,-300.0,0.00035471,2]
[423636251,1780267847000,-300.0,0.00035471,2]
[423636262,1780267847000,-300.0,0.00035471,2]
[423636264,1780267847000,-300.0,0.00035471,2]
[423636403,1780267848000,-300.0,0.00035471,2]
[423636397,1780267848000,-595.21497888,0.00035471,2]
[423636387,1780267848000,-300.0,0.00035471,2]
[423636385,1780267848000,-300.0,0.00035471,2]
[423636389,1780267848000,-1636.24753201,0.00035471,2]
[423636379,1780267848000,-300.0,0.00035471,2]
[423636384,1780267848000,-310.25089904,0.00035471,2]
[423636373,1780267848000,-950.98229606,0.00035471,2]
[423636376,1780267848000,-300.0,0.00035471,2]
[423636370,1780267848000,-300.0,0.00035471,2]
[423636399,1780267848000,-300.0,0.00035471,2]
[423636382,1780267848000,-1149.64153705,0.00035471,2]
[423636398,1780267848000,-300.0,0.00035471,2]
[423636417,1780267848000,-300.0,0.00035471,2]
[423636407,1780267848000,-300.0,0.00035471,2]
[423636393,1780267848000,-300.0,0.00035471,2]
[423636395,1780267848000,-300.0,0.00035471,2]
[423636405,1780267848000,-578.77492127,0.00035471,2]
[423636409,1780267848000,-452.85549676,0.00035471,2]
[423636411,1780267848000,-300.0,0.00035471,2]
[423636413,1780267848000,-300.0,0.00035471,2]
[423636419,1780267848000,-300.0,0.00035471,2]
[423636423,1780267848000,-485.1231417,0.00035471,2]
[423636421,1780267848000,-300.0,0.00035471,2]
[423636415,1780267848000,-300.0,0.00035471,2]
[423636377,1780267848000,-300.0,0.00035471,2]
[423636401,1780267848000,-464.81458028,0.00035471,2]
[423636372,1780267848000,-866.17918798,0.00035471,2]
[423636332,1780267848000,-300.0,0.00035471,2]
[423636374,1780267848000,-1800.99236666,0.00035471,2]
[423636426,1780267848000,-310.50110747,0.00035471,2]
[423636312,1780267848000,-300.0,0.00035471,2]
[423636314,1780267848000,-300.0,0.00035471,2]
[423636321,1780267848000,-403.31610524,0.00035471,2]
[423636330,1780267848000,-727.57003954,0.00035471,2]
[423636319,1780267848000,-300.0,0.00035471,2]
[423636317,1780267848000,-300.0,0.00035471,2]
[423636326,1780267848000,-535.11946239,0.00035471,2]
[423636334,1780267848000,-302.42365621,0.00035471,2]
[423636324,1780267848000,-1069.16901834,0.00035471,2]
[423636328,1780267848000,-300.0,0.00035471,2]
[423636336,1780267848000,-300.0,0.00035471,2]
[423636343,1780267848000,-300.0,0.00035471,2]
[423636341,1780267848000,-301.20088581,0.00035471,2]
[423636347,1780267848000,-300.0,0.00035471,2]
[423636339,1780267848000,-300.0,0.00035471,2]
[423636345,1780267848000,-300.0,0.00035471,2]
[423636349,1780267848000,-300.0,0.00035471,2]
[423636351,1780267848000,-300.0,0.00035471,2]
[423636353,1780267848000,-300.0,0.00035471,2]
[423636355,1780267848000,-300.0,0.00035471,2]
[423636359,1780267848000,-344.67640552,0.00035471,2]
[423636361,1780267848000,-300.0,0.00035471,2]
[423636357,1780267848000,-1264.80678045,0.00035471,2]
[423636364,1780267848000,-527.99519721,0.00035471,2]
[423636369,1780267848000,-300.0,0.00035471,2]
[423636367,1780267848000,-300.0,0.00035471,2]
[423636371,1780267848000,-300.0,0.00035471,2]
[423636428,1780267848000,-300.0,0.00035471,2]
[423636391,1780267848000,-300.0,0.00035471,2]
[423636432,1780267848000,-300.0,0.00035471,2]
[423636493,1780267848000,-535.11946239,0.00035471,2]
[423636486,1780267848000,-300.0,0.00035471,2]
[423636488,1780267848000,-403.31610524,0.00035471,2]
[423636506,1780267848000,-300.0,0.00035471,2]
[423636504,1780267848000,-302.42365621,0.00035471,2]
[423636509,1780267848000,-300.0,0.00035471,2]
[423636523,1780267848000,-300.0,0.00035471,2]
[423636526,1780267848000,-1264.80678045,0.00035471,2]
[423636525,1780267848000,-300.0,0.00035471,2]
[423636527,1780267848000,-300.0,0.00035471,2]
[423636513,1780267848000,-300.0,0.00035471,2]
[423636529,1780267848000,-344.67640552,0.00035471,2]
[423636511,1780267848000,-301.20088581,0.00035471,2]
[423636531,1780267848000,-527.99519721,0.00035471,2]
[423636520,1780267848000,-300.0,0.00035471,2]
[423636517,1780267848000,-300.0,0.00035471,2]
[423636521,1780267848000,-300.0,0.00035471,2]
[423636545,1780267848000,-300.0,0.00035471,2]
[423636533,1780267848000,-300.0,0.00035471,2]
[423636540,1780267848000,-866.17918798,0.00035471,2]
[423636549,1780267848000,-300.0,0.00035471,2]
[423636547,1780267848000,-300.0,0.00035471,2]
[423636541,1780267848000,-950.98229606,0.00035471,2]
[423636535,1780267848000,-300.0,0.00035471,2]
[423636537,1780267848000,-300.0,0.00035471,2]
[423636543,1780267848000,-1800.99236666,0.00035471,2]
[423636430,1780267848000,-300.0,0.00035471,2]
[423636490,1780267848000,-1069.16901834,0.00035471,2]
[423636502,1780267848000,-300.0,0.00035471,2]
[423636515,1780267848000,-300.0,0.00035471,2]
[423636497,1780267848000,-313.93663126,0.00035471,2]
[423636500,1780267848000,-727.57003954,0.00035471,2]
[423636436,1780267848000,-300.0,0.00035471,2]
[423636438,1780267848000,-300.0,0.00035471,2]
[423636440,1780267848000,-300.0,0.00035471,2]
[423636442,1780267848000,-1097.16968584,0.00035471,2]
[423636450,1780267848000,-300.0,0.00035471,2]
[423636448,1780267848000,-300.0,0.00035471,2]
[423636452,1780267848000,-300.0,0.00035471,2]
[423636444,1780267848000,-300.0,0.00035471,2]
[423636446,1780267848000,-300.0,0.00035471,2]
[423636454,1780267848000,-300.0,0.00035471,2]
[423636456,1780267848000,-300.0,0.00035471,2]
[423636458,1780267848000,-300.0,0.00035471,2]
[423636462,1780267848000,-300.0,0.00035471,2]
[423636434,1780267848000,-300.0,0.00035471,2]
[423636464,1780267848000,-300.0,0.00035471,2]
[423636538,1780267848000,-300.0,0.00035471,2]
[423636485,1780267848000,-300.0,0.00035471,2]
[423636482,1780267848000,-300.0,0.00035471,2]
[423636480,1780267848000,-605.70713704,0.00035471,2]
[423636471,1780267848000,-300.0,0.00035471,2]
[423636473,1780267848000,-300.0,0.00035471,2]
[423636495,1780267848000,-594.85069585,0.00035471,2]
[423636460,1780267848000,-300.0,0.00035471,2]
[423636466,1780267848000,-300.0,0.00035471,2]
[423636478,1780267848000,-300.0,0.00035471,2]
[423636476,1780267848000,-300.0,0.00035471,2]
[423636469,1780267848000,-493.71853303,0.00035471,2]
[423636468,1780267848000,-300.0,0.00035471,2]
[423636650,1780267849000,-500.0,0.00035616,7]
[423636620,1780267849000,-500.0,0.00035593,2]
[423636622,1780267849000,-869.24,0.00035593,2]
[423636604,1780267849000,-179.35756026,0.00035487,2]
[423636624,1780267849000,-500.0,0.00035616,7]
[423636606,1780267849000,-701.23,0.000355,30]
[423636618,1780267849000,-500.0,0.00035593,2]
[423636610,1780267849000,-500.0,0.00035585,2]
[423636616,1780267849000,-500.0,0.00035593,2]
[423636608,1780267849000,-317.92,0.00035545,120]
[423636630,1780267849000,-500.0,0.00035616,7]
[423636626,1780267849000,-500.0,0.00035616,7]
[423636635,1780267849000,-500.0,0.00035616,7]
[423636638,1780267849000,-500.0,0.00035616,7]
[423636640,1780267849000,-500.0,0.00035616,7]
[423636648,1780267849000,-500.0,0.00035616,7]
[423636632,1780267849000,-500.0,0.00035616,7]
[423636642,1780267849000,-500.0,0.00035616,7]
[423636646,1780267849000,-500.0,0.00035616,7]
[423636644,1780267849000,-500.0,0.00035616,7]
[423636652,1780267849000,-500.0,0.00035616,7]
[423636662,1780267849000,-500.0,0.00035616,7]
[423636664,1780267849000,-500.0,0.00035616,7]
[423636666,1780267849000,-500.0,0.00035616,7]
[423636658,1780267849000,-500.0,0.00035616,7]
[423636660,1780267849000,-500.0,0.00035616,7]
[423636614,1780267849000,-579.49,0.00035585,2]
[423636628,1780267849000,-500.0,0.00035616,7]
[423636612,1780267849000,-500.0,0.00035585,2]
[423636550,1780267849000,-1149.64153705,0.00035471,2]
[423636589,1780267849000,-485.1231417,0.00035471,2]
[423636551,1780267849000,-310.25089904,0.00035471,2]
[423636563,1780267849000,-300.0,0.00035471,2]
[423636553,1780267849000,-300.0,0.00035471,2]
[423636565,1780267849000,-595.21497888,0.00035471,2]
[423636567,1780267849000,-300.0,0.00035471,2]
[423636569,1780267849000,-300.0,0.00035471,2]
[423636555,1780267849000,-300.0,0.00035471,2]
[423636558,1780267849000,-300.0,0.00035471,2]
[423636557,1780267849000,-1636.24753201,0.00035471,2]
[423636571,1780267849000,-464.81458028,0.00035471,2]
[423636579,1780267849000,-452.85549676,0.00035471,2]
[423636575,1780267849000,-578.77492127,0.00035471,2]
[423636577,1780267849000,-300.0,0.00035471,2]
[423636573,1780267849000,-300.0,0.00035471,2]
[423636561,1780267849000,-300.0,0.00035471,2]
[423636581,1780267849000,-300.0,0.00035471,2]
[423636591,1780267849000,-165.15,0.00035479,120]
[423636593,1780267849000,-250.0,0.00035481,7]
[423636580,1780267849000,-300.0,0.00035471,2]
[423636585,1780267849000,-300.0,0.00035471,2]
[423636583,1780267849000,-300.0,0.00035471,2]
[423636582,1780267849000,-300.0,0.00035471,2]
[423636599,1780267849000,-286.5099704,0.00035487,2]
[423636597,1780267849000,-159.17220578,0.00035487,2]
[423636595,1780267849000,-1676.43,0.00035481,2]
[423636587,1780267849000,-300.0,0.00035471,2]
[423636600,1780267849000,-209.523056,0.00035487,2]
[423636602,1780267849000,-381.51633189,0.00035487,2]
[423636668,1780267849000,-231.54,0.00035616,2]
[423636670,1780267849000,-236.88,0.00035616,25]
[423636656,1780267849000,-500.0,0.00035616,7]
[423636722,1780267849000,-150.0,0.00035951,2]
[423636727,1780267849000,-1330.54717279,0.00035998,2]
[423636730,1780267849000,-731.19,0.00036,7]
[423636729,1780267849000,-205.7321229,0.00036,2]
[423636733,1780267849000,-1954.33887399,0.00036009,2]
[423636726,1780267849000,-1343.14150663,0.00035997,2]
[423636732,1780267849000,-1351.62114688,0.00036009,2]
[423636731,1780267849000,-1468.1761744,0.00036009,2]
[423636735,1780267849000,-1878.0911985,0.00036009,2]